[Event "*** Qualifier 4: Titled Tuesday 3|2 Blitz"]
[Site "Chess.com"]
[Date "2017.04.25"]
[Round "8"]
[White "rithwik2002"]
[Black "Enzy63"]
[Result "1-0"]
[WhiteElo "1820"]
[BlackElo "2005"]
[TimeControl "180+2"]
[EndTime "14:45:38 PDT"]
[Termination "rithwik2002 won by resignation"]

1. d4 {[%clk 0:03:02]} 1... d5 {[%clk 0:02:56.5]} 2. Bf4 {[%clk 0:03:01.8]} 2...
Nf6 {[%clk 0:02:54.4]} 3. e3 {[%clk 0:03:02.9]} 3... e6 {[%clk 0:02:46.2]} 4.
Nf3 {[%clk 0:03:00.8]} 4... c5 {[%clk 0:02:39.1]} 5. c3 {[%clk 0:02:57.2]} 5...
a6 {[%clk 0:02:34.9]} 6. Nbd2 {[%clk 0:02:44.8]} 6... Nc6 {[%clk 0:02:35.6]} 7.
Bd3 {[%clk 0:02:43.4]} 7... Bd6 {[%clk 0:02:36.5]} 8. Bg3 {[%clk 0:02:41.1]}
8... O-O {[%clk 0:02:36.3]} 9. Ne5 {[%clk 0:02:40.5]} 9... Ne7 {[%clk
0:02:12.7]} 10. f4 {[%clk 0:02:34.8]} 10... b6 {[%clk 0:01:58.5]} 11. Qf3 {[%clk
0:02:32.9]} 11... Bb7 {[%clk 0:01:58.7]} 12. O-O {[%clk 0:02:24.7]} 12... b5
{[%clk 0:01:25.3]} 13. Bh4 {[%clk 0:02:05.6]} 13... Nf5 {[%clk 0:01:25.2]} 14.
Bxf6 {[%clk 0:01:58.6]} 14... Qxf6 {[%clk 0:01:23.8]} 15. Nd7 {[%clk 0:01:55.5]}
15... Qh4 {[%clk 0:01:14]} 16. Nxf8 {[%clk 0:01:52.7]} 16... Rxf8 {[%clk
0:01:15.9]} 17. Bxf5 {[%clk 0:01:16.7]} 17... exf5 {[%clk 0:01:16.3]} 18. Qg3
{[%clk 0:01:11.7]} 18... Qe7 {[%clk 0:01:14.7]} 19. Rae1 {[%clk 0:01:09.4]}
19... g6 {[%clk 0:01:03.2]} 20. Nf3 {[%clk 0:01:06.1]} 20... b4 {[%clk
0:00:58.5]} 21. Qh4 {[%clk 0:00:33]} 21... Qxh4 {[%clk 0:00:52.1]} 22. Nxh4
{[%clk 0:00:34.9]} 22... a5 {[%clk 0:00:52.4]} 23. h3 {[%clk 0:00:32.2]} 23...
c4 {[%clk 0:00:44.3]} 24. g4 {[%clk 0:00:25.5]} 24... fxg4 {[%clk 0:00:44.7]}
25. hxg4 {[%clk 0:00:27.4]} 25... a4 {[%clk 0:00:45.4]} 26. Kg2 {[%clk
0:00:18.6]} 26... f6 {[%clk 0:00:43.3]} 27. f5 {[%clk 0:00:13.3]} 27... g5
{[%clk 0:00:43.9]} 28. Nf3 {[%clk 0:00:13.6]} 28... Kg7 {[%clk 0:00:43.3]} 29.
Rh1 {[%clk 0:00:14.4]} 29... Rh8 {[%clk 0:00:41.1]} 30. Rh5 {[%clk 0:00:14.9]}
30... h6 {[%clk 0:00:39.2]} 31. Reh1 {[%clk 0:00:15.4]} 31... Bc6 {[%clk
0:00:40.5]} 32. Re1 {[%clk 0:00:15.7]} 32... Be8 {[%clk 0:00:40.7]} 33. Rhh1
{[%clk 0:00:16.9]} 33... h5 {[%clk 0:00:41.7]} 34. gxh5 {[%clk 0:00:17.9]} 34...
Bxh5 {[%clk 0:00:43.1]} 35. Nd2 {[%clk 0:00:15.7]} 35... b3 {[%clk 0:00:41.1]}
36. a3 {[%clk 0:00:13.9]} 36... g4 {[%clk 0:00:38.4]} 37. e4 {[%clk 0:00:14.2]}
37... Bf4 {[%clk 0:00:36.9]} 38. Nf1 {[%clk 0:00:13.6]} 38... g3 {[%clk
0:00:33]} 39. Nxg3 {[%clk 0:00:12.3]} 39... Bxg3 {[%clk 0:00:31]} 40. Kxg3
{[%clk 0:00:12.1]} 40... Kf7 {[%clk 0:00:32.3]} 41. Kf4 {[%clk 0:00:09.3]} 41...
dxe4 {[%clk 0:00:30.9]} 42. Rxe4 {[%clk 0:00:10.2]} 42... Rh7 {[%clk 0:00:23.9]}
43. Rg1 {[%clk 0:00:10.5]} 43... Rh8 {[%clk 0:00:24.4]} 44. Re3 {[%clk
0:00:10.9]} 44... Rh7 {[%clk 0:00:24.8]} 45. Reg3 {[%clk 0:00:11.2]} 45... Kf8
{[%clk 0:00:24.5]} 46. Rg8+ {[%clk 0:00:11.6]} 46... Kf7 {[%clk 0:00:25.7]} 47.
Ra8 {[%clk 0:00:10.6]} 1-0

[Event "*** Qualifier 4: Titled Tuesday 3|2 Blitz"]
[Site "Chess.com"]
[Date "2017.04.25"]
[Round "8"]
[White "rubhani"]
[Black "LyonBeast"]
[Result "0-1"]
[WhiteElo "2452"]
[BlackElo "2816"]
[TimeControl "180+2"]
[EndTime "14:45:43 PDT"]
[Termination "LyonBeast won by resignation"]

1. e4 {[%clk 0:03:00.9]} 1... c5 {[%clk 0:02:48.8]} 2. Nf3 {[%clk 0:02:59.1]}
2... d6 {[%clk 0:02:50.1]} 3. d4 {[%clk 0:02:59.8]} 3... cxd4 {[%clk 0:02:52]}
4. Nxd4 {[%clk 0:03:00.9]} 4... Nf6 {[%clk 0:02:53.9]} 5. Nc3 {[%clk 0:03:01.9]}
5... a6 {[%clk 0:02:55.6]} 6. Be2 {[%clk 0:02:59.5]} 6... e5 {[%clk 0:02:56.1]}
7. Nb3 {[%clk 0:03:00.6]} 7... Be7 {[%clk 0:02:57.2]} 8. Qd3 {[%clk 0:02:46]}
8... Be6 {[%clk 0:02:54.8]} 9. O-O {[%clk 0:02:45]} 9... O-O {[%clk 0:02:49]}
10. Nd5 {[%clk 0:02:41.3]} 10... Nxd5 {[%clk 0:02:44.6]} 11. exd5 {[%clk
0:02:42.3]} 11... Bd7 {[%clk 0:02:46.3]} 12. a4 {[%clk 0:02:39.1]} 12... f5
{[%clk 0:02:46.1]} 13. f4 {[%clk 0:02:38.7]} 13... Bf6 {[%clk 0:02:45.8]} 14. c3
{[%clk 0:02:37.9]} 14... Qb6+ {[%clk 0:02:29.8]} 15. Be3 {[%clk 0:02:38.3]}
15... Qxb3 {[%clk 0:02:30.7]} 16. Rfb1 {[%clk 0:02:11.9]} 16... exf4 {[%clk
0:02:19.7]} 17. Bf2 {[%clk 0:01:56.3]} 17... b5 {[%clk 0:02:06.4]} 18. Ra3
{[%clk 0:01:52]} 18... Qc4 {[%clk 0:02:07.2]} 19. axb5 {[%clk 0:01:39]} 19...
Qxd3 {[%clk 0:02:06.9]} 20. Bxd3 {[%clk 0:01:40.9]} 20... a5 {[%clk 0:01:42]}
21. b4 {[%clk 0:01:32.4]} 21... a4 {[%clk 0:01:37.9]} 22. c4 {[%clk 0:01:33]}
22... Bc8 {[%clk 0:01:13.5]} 23. c5 {[%clk 0:01:22.6]} 23... Nd7 {[%clk
0:01:13.5]} 24. c6 {[%clk 0:01:16.8]} 24... Ne5 {[%clk 0:01:14.5]} 25. Bf1
{[%clk 0:01:04.1]} 25... Ng4 {[%clk 0:01:15.3]} 26. b6 {[%clk 0:00:47.6]} 26...
Nxf2 {[%clk 0:01:15.7]} 27. b7 {[%clk 0:00:48.8]} 27... Bxb7 {[%clk 0:01:07.9]}
28. cxb7 {[%clk 0:00:49.9]} 28... Rab8 {[%clk 0:00:52.4]} 29. Kxf2 {[%clk
0:00:51.2]} 29... Rxb7 {[%clk 0:00:53.7]} 30. Rxa4 {[%clk 0:00:52.1]} 30... Bd4+
{[%clk 0:00:53.8]} 31. Kf3 {[%clk 0:00:53.4]} 31... g5 {[%clk 0:00:54.1]} 32. b5
{[%clk 0:00:50.8]} 32... Be3 {[%clk 0:00:51.5]} 33. h3 {[%clk 0:00:46.6]} 33...
h5 {[%clk 0:00:50.7]} 34. Bd3 {[%clk 0:00:40.4]} 34... g4+ {[%clk 0:00:51.1]}
35. Ke2 {[%clk 0:00:38.5]} 35... Re7 {[%clk 0:00:51.3]} 36. Kf1 {[%clk
0:00:37.9]} 36... Kg7 {[%clk 0:00:47.8]} 37. b6 {[%clk 0:00:38.5]} 37... Kf6
{[%clk 0:00:47.6]} 38. b7 {[%clk 0:00:38.8]} 38... Rb8 {[%clk 0:00:48.5]} 39.
Ra8 {[%clk 0:00:16.1]} 39... Rbxb7 {[%clk 0:00:45.4]} 40. Rxb7 {[%clk
0:00:16.6]} 40... Rxb7 {[%clk 0:00:46.4]} 41. Rf8+ {[%clk 0:00:18.5]} 41... Kg5
{[%clk 0:00:46.7]} 42. Rxf5+ {[%clk 0:00:17.8]} 42... Kh4 {[%clk 0:00:47.9]} 43.
hxg4 {[%clk 0:00:17.9]} 43... hxg4 {[%clk 0:00:49.8]} 44. Be4 {[%clk 0:00:18.2]}
44... Rb2 {[%clk 0:00:44.6]} 45. Rf6 {[%clk 0:00:18.2]} 45... Rf2+ {[%clk
0:00:37.3]} 46. Ke1 {[%clk 0:00:03.4]} 46... f3 {[%clk 0:00:24.9]} 47. Rh6+
{[%clk 0:00:03.5]} 47... Kg3 {[%clk 0:00:23.9]} 48. gxf3 {[%clk 0:00:05.4]}
48... Bxh6 {[%clk 0:00:24.8]} 0-1

[Event "*** Qualifier 4: Titled Tuesday 3|2 Blitz"]
[Site "Chess.com"]
[Date "2017.04.25"]
[Round "8"]
[White "EgorGeroev"]
[Black "jcibarra"]
[Result "1/2-1/2"]
[WhiteElo "2566"]
[BlackElo "2671"]
[TimeControl "180+2"]
[EndTime "14:47:34 PDT"]
[Termination "Game drawn - insufficient material"]

1. e4 {[%clk 0:03:02]} 1... c5 {[%clk 0:02:57]} 2. Nf3 {[%clk 0:03:03.9]} 2...
Nf6 {[%clk 0:02:57.8]} 3. e5 {[%clk 0:03:04.8]} 3... Nd5 {[%clk 0:02:58.9]} 4.
Nc3 {[%clk 0:03:06.7]} 4... e6 {[%clk 0:02:59.9]} 5. Nxd5 {[%clk 0:03:06.8]}
5... exd5 {[%clk 0:03:01.8]} 6. d4 {[%clk 0:03:07.1]} 6... Nc6 {[%clk
0:03:03.1]} 7. dxc5 {[%clk 0:03:07.8]} 7... Bxc5 {[%clk 0:03:05]} 8. Bd3 {[%clk
0:03:06.6]} 8... d6 {[%clk 0:03:05.7]} 9. exd6 {[%clk 0:03:04.5]} 9... O-O
{[%clk 0:03:06.7]} 10. O-O {[%clk 0:03:05.6]} 10... Qxd6 {[%clk 0:03:06.9]} 11.
Re1 {[%clk 0:02:52.6]} 11... h6 {[%clk 0:03:06.1]} 12. h3 {[%clk 0:02:52.5]}
12... Bd7 {[%clk 0:02:51]} 13. Be3 {[%clk 0:02:52.2]} 13... Bxe3 {[%clk
0:02:29]} 14. Rxe3 {[%clk 0:02:54.1]} 14... Rfe8 {[%clk 0:02:30.6]} 15. Rxe8+
{[%clk 0:02:51.7]} 15... Rxe8 {[%clk 0:02:32.5]} 16. Qd2 {[%clk 0:02:53.4]}
16... Ne5 {[%clk 0:02:28.2]} 17. Nxe5 {[%clk 0:02:54]} 17... Qxe5 {[%clk
0:02:30.1]} 18. c3 {[%clk 0:02:54]} 18... Bf5 {[%clk 0:02:18]} 19. Bb5 {[%clk
0:02:46.1]} 19... Re7 {[%clk 0:02:16.4]} 20. Bf1 {[%clk 0:02:35.8]} 20... Bd7
{[%clk 0:02:03.8]} 21. Rd1 {[%clk 0:02:35.7]} 21... Ba4 {[%clk 0:02:00.6]} 22.
b3 {[%clk 0:02:31.8]} 22... Bc6 {[%clk 0:02:01.6]} 23. a4 {[%clk 0:02:15.7]}
23... g5 {[%clk 0:01:48.3]} 24. a5 {[%clk 0:01:24.3]} 24... Kg7 {[%clk
0:01:47.2]} 25. b4 {[%clk 0:01:25.3]} 25... a6 {[%clk 0:01:45.8]} 26. g3 {[%clk
0:01:25.6]} 26... Ba4 {[%clk 0:01:42.6]} 27. Ra1 {[%clk 0:01:24.9]} 27... Bc6
{[%clk 0:01:39.2]} 28. Bg2 {[%clk 0:01:23]} 28... Qe2 {[%clk 0:01:34.6]} 29.
Qd4+ {[%clk 0:01:18.9]} 29... Qe5 {[%clk 0:01:35.5]} 30. Qc5 {[%clk 0:01:13.4]}
30... Rc7 {[%clk 0:01:30.8]} 31. Rc1 {[%clk 0:00:58.6]} 31... Bd7 {[%clk
0:01:10]} 32. Qxd5 {[%clk 0:00:54.3]} 32... Qxd5 {[%clk 0:01:11.1]} 33. Bxd5
{[%clk 0:00:56.2]} 33... Bxh3 {[%clk 0:01:12.8]} 34. c4 {[%clk 0:00:57]} 34...
Be6 {[%clk 0:01:02.1]} 35. Bxe6 {[%clk 0:00:51.4]} 35... fxe6 {[%clk 0:01:04]}
36. c5 {[%clk 0:00:53.1]} 36... Rd7 {[%clk 0:01:01.3]} 37. c6 {[%clk 0:00:49.9]}
37... Rc7 {[%clk 0:00:57.9]} 38. cxb7 {[%clk 0:00:50.4]} 38... Rxb7 {[%clk
0:00:53]} 39. Rc6 {[%clk 0:00:51.4]} 39... Rxb4 {[%clk 0:00:52.8]} 40. Rxe6
{[%clk 0:00:51.6]} 40... Ra4 {[%clk 0:00:53.9]} 41. Rxa6 {[%clk 0:00:52.3]}
41... g4 {[%clk 0:00:54.7]} 42. Kf1 {[%clk 0:00:51.2]} 42... Ra2 {[%clk
0:00:55.3]} 43. Ke1 {[%clk 0:00:45.4]} 43... h5 {[%clk 0:00:56.6]} 44. Ra8
{[%clk 0:00:46.3]} 44... Kh7 {[%clk 0:00:56.4]} 45. a6 {[%clk 0:00:43.8]} 45...
Kg7 {[%clk 0:00:57.1]} 46. a7 {[%clk 0:00:45.1]} 46... Ra1+ {[%clk 0:00:56.1]}
47. Ke2 {[%clk 0:00:45.9]} 47... Ra2+ {[%clk 0:00:56.9]} 48. Ke3 {[%clk
0:00:46.8]} 48... Ra4 {[%clk 0:00:58.6]} 49. Kd3 {[%clk 0:00:47.4]} 49... Ra3+
{[%clk 0:00:58.2]} 50. Ke4 {[%clk 0:00:45.8]} 50... Ra2 {[%clk 0:00:59.7]} 51.
Ke5 {[%clk 0:00:44.7]} 51... Re2+ {[%clk 0:00:59.8]} 52. Kd4 {[%clk 0:00:31]}
52... Rd2+ {[%clk 0:00:59.5]} 53. Kc4 {[%clk 0:00:32.2]} 53... Ra2 {[%clk
0:01:00.1]} 54. Kb3 {[%clk 0:00:33.1]} 54... Ra1 {[%clk 0:01:00.9]} 55. Kc4
{[%clk 0:00:33.4]} 55... Ra2 {[%clk 0:01:01.3]} 56. Kd5 {[%clk 0:00:34.2]} 56...
Ra1 {[%clk 0:01:01]} 57. Ke6 {[%clk 0:00:34.8]} 57... Ra2 {[%clk 0:01:01.9]} 58.
Kd5 {[%clk 0:00:30.9]} 58... Ra1 {[%clk 0:01:01.3]} 59. Kd4 {[%clk 0:00:31.6]}
59... Ra4+ {[%clk 0:00:56.3]} 60. Ke5 {[%clk 0:00:32.8]} 60... Ra2 {[%clk
0:00:56.5]} 61. Ke6 {[%clk 0:00:33.8]} 61... Re2+ {[%clk 0:00:52.9]} 62. Kd6
{[%clk 0:00:34.2]} 62... Rd2+ {[%clk 0:00:53]} 63. Kc6 {[%clk 0:00:35.3]} 63...
Ra2 {[%clk 0:00:53.8]} 64. Kd7 {[%clk 0:00:36]} 64... Rd2+ {[%clk 0:00:52.1]}
65. Ke6 {[%clk 0:00:36.8]} 65... Re2+ {[%clk 0:00:52.3]} 66. Kf5 {[%clk
0:00:38.1]} 66... Rxf2+ {[%clk 0:00:51.6]} 67. Kg5 {[%clk 0:00:39.6]} 67... Ra2
{[%clk 0:00:52.4]} 68. Kxh5 {[%clk 0:00:40.9]} 68... Ra5+ {[%clk 0:00:48.5]} 69.
Kxg4 {[%clk 0:00:41.6]} 69... Ra4+ {[%clk 0:00:50]} 70. Kf5 {[%clk 0:00:42.7]}
70... Ra5+ {[%clk 0:00:51.4]} 71. Kf4 {[%clk 0:00:43.5]} 71... Ra4+ {[%clk
0:00:52.8]} 72. Kg5 {[%clk 0:00:45]} 72... Ra5+ {[%clk 0:00:54.1]} 73. Kh4
{[%clk 0:00:46.4]} 73... Ra4+ {[%clk 0:00:55.4]} 74. g4 {[%clk 0:00:46.9]} 74...
Ra1 {[%clk 0:00:57]} 75. Kh5 {[%clk 0:00:41.6]} 75... Ra5+ {[%clk 0:00:57.1]}
76. g5 {[%clk 0:00:42.4]} 76... Ra1 {[%clk 0:00:58.1]} 77. Rd8 {[%clk
0:00:42.2]} 77... Rxa7 {[%clk 0:00:58.5]} 78. Rd5 {[%clk 0:00:43.4]} 78... Ra6
{[%clk 0:00:57.2]} 79. g6 {[%clk 0:00:40.6]} 79... Ra7 {[%clk 0:00:50.1]} 80.
Kg5 {[%clk 0:00:41.8]} 80... Rb7 {[%clk 0:00:51.5]} 81. Re5 {[%clk 0:00:42.6]}
81... Ra7 {[%clk 0:00:52]} 82. Kf5 {[%clk 0:00:43.7]} 82... Rb7 {[%clk
0:00:52.4]} 83. Ra5 {[%clk 0:00:44.8]} 83... Rc7 {[%clk 0:00:53]} 84. Ra6 {[%clk
0:00:46.2]} 84... Rb7 {[%clk 0:00:53.7]} 85. Rc6 {[%clk 0:00:45.5]} 85... Rb5+
{[%clk 0:00:54.1]} 86. Kf4 {[%clk 0:00:46.5]} 86... Ra5 {[%clk 0:00:55.1]} 87.
Re6 {[%clk 0:00:47.5]} 87... Rb5 {[%clk 0:00:56]} 88. Re5 {[%clk 0:00:47.5]}
88... Rxe5 {[%clk 0:00:56.7]} 89. Kxe5 {[%clk 0:00:49.4]} 89... Kxg6 {[%clk
0:00:58.3]} 1/2-1/2

[Event "*** Qualifier 4: Titled Tuesday 3|2 Blitz"]
[Site "Chess.com"]
[Date "2017.04.25"]
[Round "9"]
[White "gumersindo"]
[Black "pastouche06"]
[Result "1/2-1/2"]
[WhiteElo "2278"]
[BlackElo "2332"]
[TimeControl "180+2"]
[EndTime "14:49:59 PDT"]
[Termination "Game drawn by agreement"]

1. d4 {[%clk 0:03:02]} 1... Nf6 {[%clk 0:02:59.2]} 2. c4 {[%clk 0:03:03]} 2...
e6 {[%clk 0:02:59.3]} 3. Nc3 {[%clk 0:03:04.2]} 3... Bb4 {[%clk 0:02:59.7]} 4.
Qc2 {[%clk 0:03:05.2]} 4... O-O {[%clk 0:02:59.8]} 5. a3 {[%clk 0:03:04.3]} 5...
Bxc3+ {[%clk 0:03:00.8]} 6. Qxc3 {[%clk 0:03:05.9]} 6... d5 {[%clk 0:03:02.2]}
7. Bg5 {[%clk 0:03:04.3]} 7... dxc4 {[%clk 0:03:02.2]} 8. Qxc4 {[%clk
0:03:05.9]} 8... b6 {[%clk 0:03:03.5]} 9. Rd1 {[%clk 0:03:05.5]} 9... Ba6 {[%clk
0:03:01.3]} 10. Qa4 {[%clk 0:03:06.8]} 10... h6 {[%clk 0:02:55.8]} 11. Bxf6
{[%clk 0:03:04.3]} 11... Qxf6 {[%clk 0:02:56.3]} 12. Nf3 {[%clk 0:03:05.6]}
12... c5 {[%clk 0:02:50.4]} 13. e3 {[%clk 0:03:05.6]} 13... Bxf1 {[%clk
0:02:49.5]} 14. Kxf1 {[%clk 0:03:07.1]} 14... cxd4 {[%clk 0:02:38.1]} 15. Qxd4
{[%clk 0:03:07.2]} 15... Qxd4 {[%clk 0:02:34.3]} 16. Nxd4 {[%clk 0:03:06]} 16...
Rc8 {[%clk 0:02:31.9]} 17. Ke2 {[%clk 0:03:00.3]} 17... Nc6 {[%clk 0:02:28.6]}
18. Nxc6 {[%clk 0:02:51.6]} 18... Rxc6 {[%clk 0:02:30.5]} 19. Rc1 {[%clk
0:02:52.4]} 1/2-1/2

[Event "*** Qualifier 4: Titled Tuesday 3|2 Blitz"]
[Site "Chess.com"]
[Date "2017.04.25"]
[Round "9"]
[White "rubhani"]
[Black "Hikaru"]
[Result "0-1"]
[WhiteElo "2451"]
[BlackElo "2933"]
[TimeControl "180+2"]
[EndTime "14:52:47 PDT"]
[Termination "Hikaru won by resignation"]

1. e4 {[%clk 0:02:56.9]} 1... e5 {[%clk 0:02:55.9]} 2. Nf3 {[%clk 0:02:56.2]}
2... Nc6 {[%clk 0:02:57.5]} 3. Bb5 {[%clk 0:02:55.1]} 3... Nf6 {[%clk
0:02:58.8]} 4. d3 {[%clk 0:02:55.1]} 4... Bc5 {[%clk 0:02:59.4]} 5. O-O {[%clk
0:02:53.9]} 5... Nd4 {[%clk 0:03:00.3]} 6. Nxd4 {[%clk 0:02:54.5]} 6... Bxd4
{[%clk 0:03:02.2]} 7. Nd2 {[%clk 0:02:55.3]} 7... a6 {[%clk 0:03:03.2]} 8. Ba4
{[%clk 0:02:56.5]} 8... b5 {[%clk 0:03:05.1]} 9. Bb3 {[%clk 0:02:57.7]} 9... d6
{[%clk 0:03:06.6]} 10. h3 {[%clk 0:02:52.9]} 10... O-O {[%clk 0:03:07]} 11. a4
{[%clk 0:02:49.8]} 11... Be6 {[%clk 0:03:05.4]} 12. c3 {[%clk 0:02:37]} 12...
Bb6 {[%clk 0:03:04.8]} 13. Bxe6 {[%clk 0:02:35.7]} 13... fxe6 {[%clk 0:03:06.7]}
14. axb5 {[%clk 0:02:36.8]} 14... axb5 {[%clk 0:03:07.1]} 15. Rxa8 {[%clk
0:02:36.7]} 15... Qxa8 {[%clk 0:03:09]} 16. Qb3 {[%clk 0:02:38]} 16... Qe8
{[%clk 0:03:10.5]} 17. Nf3 {[%clk 0:02:36]} 17... h6 {[%clk 0:03:11.3]} 18. Be3
{[%clk 0:02:09.2]} 18... Nh5 {[%clk 0:03:08.5]} 19. Bxb6 {[%clk 0:02:03.5]}
19... cxb6 {[%clk 0:03:10.4]} 20. Re1 {[%clk 0:01:41]} 20... Rxf3 {[%clk
0:03:09.3]} 21. gxf3 {[%clk 0:01:41.5]} 21... Nf4 {[%clk 0:03:10.3]} 22. Rd1
{[%clk 0:01:14.5]} 22... Qh5 {[%clk 0:02:40.8]} 23. Kf1 {[%clk 0:01:06.2]} 23...
Qxf3 {[%clk 0:02:35.9]} 0-1

[Event "*** Qualifier 4: Titled Tuesday 3|2 Blitz"]
[Site "Chess.com"]
[Date "2017.04.25"]
[Round "9"]
[White "IIIlllII1llIl"]
[Black "Indianlad"]
[Result "1-0"]
[WhiteElo "2560"]
[BlackElo "2686"]
[TimeControl "180+2"]
[EndTime "14:53:20 PDT"]
[Termination "IIIlllII1llIl won by resignation"]

1. e4 {[%clk 0:03:02]} 1... c5 {[%clk 0:03:00.7]} 2. c3 {[%clk 0:03:03]} 2... d5
{[%clk 0:03:01.6]} 3. exd5 {[%clk 0:03:04.9]} 3... Nf6 {[%clk 0:03:03.2]} 4.
Qa4+ {[%clk 0:02:50.1]} 4... Nbd7 {[%clk 0:03:03.9]} 5. c4 {[%clk 0:02:50.7]}
5... a6 {[%clk 0:03:03.1]} 6. Nc3 {[%clk 0:02:44.2]} 6... g6 {[%clk 0:03:03.6]}
7. Nf3 {[%clk 0:02:24.4]} 7... Bg7 {[%clk 0:03:05.2]} 8. Be2 {[%clk 0:02:10.8]}
8... b5 {[%clk 0:03:05.2]} 9. cxb5 {[%clk 0:02:09.9]} 9... Nb6 {[%clk
0:03:06.4]} 10. Qa3 {[%clk 0:02:09.2]} 10... O-O {[%clk 0:03:06.6]} 11. bxa6
{[%clk 0:02:03.8]} 11... c4 {[%clk 0:03:05.6]} 12. a7 {[%clk 0:01:48]} 12...
Nfxd5 {[%clk 0:03:00.9]} 13. O-O {[%clk 0:01:40.5]} 13... Bb7 {[%clk 0:02:59.5]}
14. Rd1 {[%clk 0:01:32.9]} 14... Nf4 {[%clk 0:03:00.3]} 15. d4 {[%clk
0:01:32.4]} 15... cxd3 {[%clk 0:02:58.8]} 16. Bxf4 {[%clk 0:01:30.7]} 16... dxe2
{[%clk 0:02:48.7]} 17. Rxd8 {[%clk 0:01:30.3]} 17... Rfxd8 {[%clk 0:02:50.6]}
18. Nxe2 {[%clk 0:01:17.8]} 18... Nc4 {[%clk 0:02:49.3]} 19. Qxe7 {[%clk
0:01:04.5]} 19... Bd5 {[%clk 0:02:50.7]} 20. Bb8 {[%clk 0:01:00.1]} 20... Rdxb8
{[%clk 0:02:49.8]} 21. axb8=Q+ {[%clk 0:01:02]} 21... Rxb8 {[%clk 0:02:51.7]}
22. Nf4 {[%clk 0:00:45.3]} 22... Bxf3 {[%clk 0:02:50.8]} 23. gxf3 {[%clk
0:00:47.2]} 23... Ne5 {[%clk 0:02:51.6]} 24. Kg2 {[%clk 0:00:43.4]} 24... h5
{[%clk 0:02:45.7]} 25. Rc1 {[%clk 0:00:34.7]} 25... Rxb2 {[%clk 0:02:46.5]} 26.
Ne6 {[%clk 0:00:27.6]} 26... Bh6 {[%clk 0:02:43.2]} 27. Rc8+ {[%clk 0:00:23.7]}
27... Kh7 {[%clk 0:02:44.4]} 28. Qf6 {[%clk 0:00:22.1]} 28... Rxf2+ {[%clk
0:02:42.8]} 29. Kxf2 {[%clk 0:00:19.7]} 1-0

[Event "*** Qualifier 4: Titled Tuesday 3|2 Blitz"]
[Site "Chess.com"]
[Date "2017.04.25"]
[Round "9"]
[White "jcgs1030"]
[Black "L3on4rdo"]
[Result "0-1"]
[WhiteElo "2265"]
[BlackElo "2393"]
[TimeControl "180+2"]
[EndTime "14:53:34 PDT"]
[Termination "L3on4rdo won by resignation"]

1. e4 {[%clk 0:03:02]} 1... c5 {[%clk 0:02:59.9]} 2. Nf3 {[%clk 0:03:01.8]} 2...
Nc6 {[%clk 0:03:01.1]} 3. Bb5 {[%clk 0:03:01.1]} 3... e6 {[%clk 0:03:00.5]} 4.
O-O {[%clk 0:02:59.4]} 4... Nge7 {[%clk 0:03:01.1]} 5. Re1 {[%clk 0:03:00.6]}
5... a6 {[%clk 0:03:01.1]} 6. Bf1 {[%clk 0:03:00.8]} 6... d5 {[%clk 0:02:58.1]}
7. exd5 {[%clk 0:03:01.1]} 7... Nxd5 {[%clk 0:02:57.7]} 8. d4 {[%clk 0:03:02.6]}
8... Be7 {[%clk 0:02:57.2]} 9. dxc5 {[%clk 0:03:01.9]} 9... Bxc5 {[%clk
0:02:57.5]} 10. c4 {[%clk 0:03:02.6]} 10... Nf6 {[%clk 0:02:58.4]} 11. a3 {[%clk
0:02:58.7]} 11... Qxd1 {[%clk 0:02:56.8]} 12. Rxd1 {[%clk 0:03:00.6]} 12... Ne4
{[%clk 0:02:57.3]} 13. Be3 {[%clk 0:02:59.7]} 13... Bxe3 {[%clk 0:02:57.8]} 14.
fxe3 {[%clk 0:03:01.6]} 14... a5 {[%clk 0:02:49.1]} 15. Nbd2 {[%clk 0:03:02.9]}
15... Nc5 {[%clk 0:02:49.2]} 16. Nd4 {[%clk 0:02:56.4]} 16... a4 {[%clk
0:02:18.1]} 17. Nxc6 {[%clk 0:02:53.9]} 17... bxc6 {[%clk 0:02:19.2]} 18. g3
{[%clk 0:02:55]} 18... Bd7 {[%clk 0:02:12.8]} 19. Bg2 {[%clk 0:02:56.2]} 19...
Rb8 {[%clk 0:02:11.4]} 20. Rab1 {[%clk 0:02:55.7]} 20... Ke7 {[%clk 0:02:06]}
21. Ne4 {[%clk 0:02:56.4]} 21... Nxe4 {[%clk 0:02:07.3]} 22. Bxe4 {[%clk
0:02:58]} 22... c5 {[%clk 0:02:08.8]} 23. Rd2 {[%clk 0:02:56.8]} 23... Rhc8
{[%clk 0:02:05.2]} 24. Rf1 {[%clk 0:02:56.4]} 24... Bc6 {[%clk 0:02:02.1]} 25.
Bxc6 {[%clk 0:02:55.3]} 25... Rxc6 {[%clk 0:02:03]} 26. Rff2 {[%clk 0:02:48.8]}
26... Rb3 {[%clk 0:02:01]} 27. Rfe2 {[%clk 0:02:47]} 27... Rd6 {[%clk
0:01:46.6]} 28. Kf2 {[%clk 0:02:47.4]} 28... Rdd3 {[%clk 0:01:43.6]} 29. Rxd3
{[%clk 0:02:48.5]} 29... Rxd3 {[%clk 0:01:44.7]} 30. Rc2 {[%clk 0:02:50.1]}
30... Kd6 {[%clk 0:01:42.4]} 31. Ke2 {[%clk 0:02:49.8]} 31... Rb3 {[%clk
0:01:43.3]} 32. Rd2+ {[%clk 0:02:47.6]} 32... Ke5 {[%clk 0:01:44.5]} 33. Kf3
{[%clk 0:02:49.2]} 33... h5 {[%clk 0:01:36]} 34. h4 {[%clk 0:02:50.1]} 34... f6
{[%clk 0:01:35.1]} 35. Rd7 {[%clk 0:02:41.6]} 35... g5 {[%clk 0:01:30.1]} 36.
hxg5 {[%clk 0:02:40.3]} 36... fxg5 {[%clk 0:01:32]} 37. Rd2 {[%clk 0:02:36.8]}
37... g4+ {[%clk 0:01:29.4]} 38. Kf2 {[%clk 0:02:37.5]} 38... Ke4 {[%clk
0:01:29.7]} 39. Rc2 {[%clk 0:02:23.7]} 39... Kd3 {[%clk 0:01:15]} 40. Re2 {[%clk
0:02:21.5]} 40... e5 {[%clk 0:01:14.8]} 41. e4 {[%clk 0:02:21.3]} 41... Kxc4
{[%clk 0:01:14.5]} 42. Rd2 {[%clk 0:02:21.9]} 42... Rd3 {[%clk 0:01:15.2]} 43.
Rxd3 {[%clk 0:02:18.1]} 43... Kxd3 {[%clk 0:01:15.5]} 0-1